bitfinex/quotes_ETHUSD_20240816
["timestamp","ask_amount","ask_price","bid_price","bid_amount"]
[1723811847550,7.42625643,2580.0,2578.5,3.8781]
[1723811847551,3.87695,2579.4,2578.5,3.87813]
[1723811847730,3.87728,2579.2,2578.6,3.87804]
[1723811847932,3.87734,2579.1,2578.5,3.87813]
[1723811848117,3.87728,2579.2,2578.5,3.87812]
[1723811848326,3.87706,2579.3,2578.7,3.8779]
[1723811848522,3.87719,2579.2,2578.5,4.265933]
[1723811848843,1.0596051,2579.3,2578.7,3.87786]
[1723811849053,7.75392,2579.4,2578.7,3.87782]
[1723811849546,3.87718,2579.2,2578.5,3.87811]
[1723811849856,0.07615487,2579.1,2578.3,3.87844]
[1723811850010,0.07615487,2579.1,2577.7,6.773]
[1723811850011,6.25446,2578.8,2578.2,3.87867]
[1723811850210,3.87802,2578.7,2578.0,3.87885]
[1723811850529,3.87795,2578.7,2578.0,3.87893]
[1723811850714,0.07615487,2578.6,2578.0,3.87887]
[1723811850911,0.07615487,2578.6,2577.8,3.87916]
[1723811851151,3.87823,2578.5,2577.7,3.87941]
[1723811851320,3.87852,2578.3,2577.6,3.87949]
[1723811851528,3.87852,2578.3,2577.6,7.75894]
[1723811852007,2.274,2578.4,2576.9,0.43971405]
[1723811852210,3.87886,2578.1,2577.0,6.3712]
[1723811852418,3.87913,2577.9,2577.3,3.87993]
[1723811852623,3.87947,2577.7,2577.1,3.8802]
[1723811853067,6.25777,2577.7,2577.1,3.88032]
[1723811853222,2.3783,2577.7,2576.5,2.4908]
[1723811853426,3.87889,2578.1,2577.1,3.8803]
[1723811853427,0.07615487,2577.6,2577.1,3.8803]
[1723811853634,3.88016,2577.3,2576.5,4.2692]
[1723811853948,0.07615487,2577.2,2576.6,0.28789]
[1723811854247,0.07615487,2577.2,2576.3,4.0086426]
[1723811854248,3.88005,2577.3,2576.3,0.1271126]
[1723811854489,3.87995,2577.4,2576.7,3.88082]
[1723811854782,2.3783,2577.5,2576.8,3.88065]
[1723811855102,3.87983,2577.5,2576.8,3.88064]
[1723811855386,6.25745,2577.9,2577.1,3.88024]
[1723811855588,2.61613,2577.9,2576.9,3.88059]
[1723811855790,3.87952,2577.7,2577.2,0.05885363]
[1723811855996,3.87952,2577.7,2576.9,4.268579]
[1723811855997,0.07615487,2577.6,2576.9,4.268619]
[1723811856300,6.49527,2577.9,2576.7,3.88087]
[1723811856301,3.87982,2577.5,2576.7,3.88087]
[1723811856588,3.87982,2577.5,2576.3,4.5791126]
[1723811856589,0.07615487,2577.4,2577.0,0.0588554]
[1723811856900,3.88018,2577.2,2577.1,0.05750875]
[1723811857060,3.88067,2576.9,2576.3,0.1271126]
[1723811857391,2.3783,2577.3,2577.1,0.05750875]
[1723811857595,2.3783,2577.3,2576.8,3.88077]
[1723811857761,2.3783,2577.3,2576.9,3.8806]
[1723811857962,2.3783,2577.3,2576.9,0.0561412]
[1723811858207,2.3783,2577.6,2576.9,3.9366612]
[1723811858412,2.3783,2577.6,2576.9,7.8171712]
[1723811858571,2.3783,2577.6,2576.9,3.9366512]
[1723811858761,6.25797,2577.6,2576.9,3.9366412]
[1723811859279,3.95589487,2577.5,2576.9,0.0561412]
[1723811859505,3.392041,2577.6,2576.9,3.9367612]
[1723811859702,2.3783,2577.6,2577.0,3.88046]
[1723811860017,0.73232163,2578.0,2576.9,3.9367612]
[1723811860018,6.25738,2578.0,2577.3,3.87992]
[1723811860202,2.3783,2578.0,2577.3,3.87992]
[1723811860382,3.87972,2577.5,2577.4,0.05613679]
[1723811860584,3.95587487,2577.5,2577.4,0.05613679]
[1723811860891,3.95587487,2577.5,2576.6,3.88102]
[1723811860892,3.87993,2577.4,2576.6,3.88097]
[1723811861077,3.87993,2577.4,2576.6,4.269067]
[1723811861276,2.45445487,2577.3,2576.7,0.05614297]
[1723811861475,3.88027,2577.2,2576.7,0.05614297]
[1723811861681,3.95649487,2577.1,2576.3,0.1271126]
[1723811861897,3.88102,2576.7,2576.3,0.1271126]
[1723811862098,0.07615487,2576.6,2576.3,0.1271126]
[1723811862297,3.88054,2577.0,2576.3,4.40949086]
[1723811862500,3.88054,2577.0,2576.3,0.1271126]
[1723811862501,3.88053,2577.0,2576.3,0.1271126]
[1723811862686,0.63347249,2577.2,2576.3,0.1271126]
[1723811862886,3.88058,2577.0,2576.3,4.0086326]
[1723811863422,3.88094,2576.7,2576.3,0.1271126]
[1723811863734,2.2756,2576.6,2576.3,0.1271126]
[1723811864138,3.88138,2576.4,2576.3,0.1271126]
[1723811864290,7.76276,2576.4,2576.3,0.1271126]
[1723811864742,6.88024,2577.2,2576.3,0.1271126]
[1723811864743,2.2756,2577.0,2576.3,0.1271126]
[1723811865241,3.87934,2577.8,2577.0,3.88041]
[1723811865423,3.87934,2577.8,2577.1,0.388041]
[1723811865619,3.87982,2577.5,2576.8,3.88066]
[1723811865792,2.2756,2577.9,2576.9,3.88051]
[1723811866100,2.2756,2577.9,2576.6,2.3057]
[1723811866101,2.2756,2577.9,2577.3,3.88001]
[1723811866318,3.87874,2578.2,2577.4,3.87986]
[1723811866515,0.40511188,2578.6,2577.8,3.87915]
[1723811866516,2.2756,2578.3,2577.8,3.87915]
[1723811866818,2.2756,2578.3,2577.8,0.775871]
[1723811867017,3.87813,2578.6,2577.4,3.87986]
[1723811867220,2.2616,2579.1,2578.3,3.87843]
[1723811867528,3.87692,2579.4,2578.6,3.87793]
[1723811867901,2.2616,2579.5,2578.9,3.87762]
[1723811868132,2.2616,2579.5,2578.1,4.68383]
[1723811868133,3.87697,2579.4,2578.7,3.87781]
[1723811868333,3.87702,2579.3,2578.7,3.8778]
[1723811868650,3.87731,2579.2,2578.6,3.87797]
[1723811868847,3.87731,2579.2,2578.4,0.387848]
[1723811869044,3.87731,2579.2,2578.6,3.87807]
[1723811869198,2.2616,2579.5,2578.1,4.68383]
[1723811869199,2.2616,2579.5,2578.2,0.07755983]
[1723811869398,2.2616,2579.5,2578.7,3.87789]
[1723811869598,2.2616,2579.5,2578.5,3.87816]
[1723811869599,3.87703,2579.3,2578.5,3.87816]
[1723811869798,2.2616,2579.5,2578.3,3.87841]
[1723811869799,3.87764,2578.9,2578.3,3.87841]
[1723811869997,0.07615487,2578.8,2578.3,5.1085713]
[1723811870224,3.87764,2578.9,2578.4,4.38921713]
[1723811870225,0.07615487,2578.9,2578.4,4.38921713]
[1723811870533,0.07615487,2578.9,2578.4,0.51085713]
[1723811870712,3.95387487,2578.9,2578.5,0.0341311]
[1723811870909,3.87804,2578.7,2578.5,0.0341311]
[1723811871111,3.87843,2578.4,2577.6,3.87948]
[1723811871363,0.07615487,2578.3,2577.7,3.87941]
[1723811871540,0.07615487,2578.3,2577.6,3.87946]
[1723811871745,2.3293,2578.9,2577.4,3.87976]
[1723811871746,3.87886,2578.1,2577.4,3.87976]
[1723811871945,2.40545487,2578.2,2577.4,4.513001]
[1723811871946,3.95512487,2578.0,2577.4,4.513001]
[1723811872247,3.87897,2578.0,2577.4,4.513001]
[1723811872404,3.87897,2578.0,2577.5,0.4513001]
[1723811872960,3.87897,2578.0,2577.4,0.633241]
[1723811873148,10.08682,2578.2,2577.4,4.512981]
[1723811873446,3.87884,2578.1,2577.4,3.87974]
[1723811874004,3.87884,2578.1,2577.4,4.655727]
[1723811874347,6.20803,2578.2,2577.4,3.87974]
[1723811874500,0.12818553,2578.1,2577.5,3.87963]
[1723811874704,6.20803,2578.2,2577.5,3.87963]
[1723811875004,3.87901,2578.0,2577.4,3.87974]
[1723811875237,3.87901,2578.0,2577.0,0.3881]
[1723811875238,0.20435134,2577.9,2577.0,4.26853]
[1723811875546,3.87967,2577.6,2576.9,3.88062]
[1723811875765,3.87928,2577.8,2577.0,0.54526]
[1723811876040,6.20805,2578.2,2577.4,3.87978]
[1723811876273,6.20805,2578.2,2577.5,3.87961]
[1723811876409,0.12818997,2578.1,2577.6,3.87955]
[1723811876729,2.3293,2578.2,2577.6,3.87948]
[1723811876937,0.12818032,2578.1,2577.7,3.87942]
[1723811877136,2.3293,2578.2,2577.6,3.87948]
[1723811877338,0.12817941,2578.1,2577.6,3.87947]
[1723811877654,3.87843,2578.4,2577.8,3.87926]
[1723811877961,3.87843,2578.4,2577.6,4.267417]
[1723811877962,0.1281796,2578.3,2577.6,4.267417]
[1723811878194,3.87843,2578.4,2577.6,4.267417]
[1723811878195,0.1281796,2578.2,2577.6,4.267417]
[1723811878324,0.1281796,2578.1,2577.7,3.87931]
[1723811878521,3.87843,2578.4,2577.8,3.87927]
[1723811878790,3.8775,2579.0,2577.7,4.77163554]
[1723811878791,3.87751,2579.0,2577.7,4.77163554]
[1723811878928,0.12814751,2578.9,2578.3,3.8785]
[1723811879125,0.12814751,2578.8,2578.3,3.8785]
[1723811879321,2.4198,2579.1,2578.4,3.87827]
[1723811879673,0.12814074,2579.0,2578.5,3.87815]
[1723811879876,0.12814074,2578.9,2578.5,3.87815]
[1723811880121,2.4198,2579.1,2578.3,7.75693]
[1723811880358,2.4198,2579.1,2577.8,6.78774897]
[1723811880359,3.87801,2578.7,2578.1,3.87872]
[1723811880544,3.87788,2578.8,2578.1,3.87872]
[1723811880761,0.1281506,2578.7,2578.1,3.87872]
[1723811880924,3.87788,2578.8,2578.1,3.87872]
[1723811881124,0.12814875,2578.7,2578.1,7.75745]
[1723811881323,8.772575,2579.0,2578.3,3.87843]
[1723811881538,0.12814336,2578.9,2578.3,3.87843]
[1723811881765,0.12814336,2578.8,2578.4,3.87834]
[1723811881922,2.4198,2579.1,2578.5,3.87809]
[1723811882122,0.12813441,2579.0,2578.5,3.87809]
[1723811882357,0.12813441,2578.9,2578.3,3.87841]
[1723811882566,0.07615487,2578.8,2577.9,3.879]
[1723811882740,0.07615487,2578.8,2576.9,3.88058]
[1723811882741,3.87876,2578.2,2577.1,6.882]
[1723811882924,3.87876,2578.2,2577.5,3.87963]
[1723811883171,7.75756,2578.2,2577.5,3.87963]
[1723811883338,3.87914,2577.9,2577.3,3.87992]
[1723811883551,3.87929,2577.8,2577.3,3.87992]
[1723811883854,3.87929,2577.8,2577.1,10.76226]
[1723811883855,3.87929,2577.8,2577.1,3.8802]
[1723811884179,2.3087,2577.9,2577.5,3.87969]
[1723811884337,3.87908,2578.0,2577.3,3.87994]
[1723811884561,3.87922,2577.9,2577.3,3.87993]
[1723811884759,3.87908,2578.0,2577.3,3.87993]
[1723811884973,3.87885,2578.1,2577.5,3.87972]
[1723811885293,6.919814,2578.2,2577.5,3.87961]
[1723811885447,0.12818599,2578.1,2577.5,3.87961]
[1723811885649,0.12818599,2578.1,2577.1,3.88024]
[1723811885650,0.12818302,2578.0,2577.1,3.88024]
[1723811885885,0.12818302,2578.0,2576.7,2.449]
[1723811885886,0.20433789,2577.9,2576.8,3.88078]
[1723811886095,3.88033,2577.1,2576.1,4.452]
[1723811886247,3.88033,2577.1,2576.3,4.0085526]
[1723811886248,0.46418787,2577.0,2576.3,4.0085526]
[1723811886450,6.16513,2577.1,2576.3,0.1271126]
[1723811886451,4.28608,2576.8,2576.3,0.1271126]
[1723811886704,3.88088,2576.8,2576.3,0.1271126]
[1723811886984,2.2848,2577.1,2576.3,0.1271126]
[1723811887163,3.88034,2577.1,2576.4,3.88132]
[1723811887688,3.8803,2577.2,2576.6,3.88098]
[1723811887866,3.88045,2577.1,2576.4,3.88127]
[1723811888323,3.8803,2577.2,2576.5,3.88123]
[1723811888467,3.8803,2577.2,2576.4,4.28209826]
[1723811888682,3.88058,2577.0,2576.4,4.28209826]
[1723811888988,3.88088,2576.8,2576.3,0.1271126]
[1723811889188,0.07615487,2576.9,2576.3,4.0086226]
[1723811889376,3.88008,2577.3,2576.3,0.1271126]
[1723811889578,4.00852909,2577.2,2576.4,3.88136]
[1723811889776,0.12824909,2577.1,2576.5,3.88122]
[1723811889995,6.27873,2577.4,2576.6,0.388122]
[1723811889996,3.88018,2577.2,2576.6,0.388122]
[1723811890167,6.27873,2577.4,2576.7,3.88082]
[1723811890363,3.88008,2577.3,2576.7,3.88082]
[1723811890622,3.88022,2577.2,2576.3,4.0085726]
[1723811890799,3.88051,2577.0,2576.4,3.88128]
[1723811891094,3.88022,2577.2,2576.6,3.88098]
[1723811891590,3.88022,2577.2,2576.5,3.88122]
[1723811891771,3.88022,2577.2,2576.5,3.88114]
[1723811891962,3.88022,2577.2,2576.5,4.36085379]
[1723811892293,3.88015,2577.3,2576.7,3.88092]
[1723811892462,2.3988,2577.4,2576.7,3.88092]
[1723811892664,3.87948,2577.7,2576.9,3.8806]
[1723811892994,3.87975,2577.5,2576.9,3.8806]
[1723811893556,2.31,2577.9,2577.2,3.88008]
[1723811893761,2.31,2577.9,2577.0,0.077605]
[1723811893762,3.87954,2577.7,2577.0,3.88037]
[1723811894081,0.12820727,2577.6,2577.1,3.88032]
[1723811894272,3.87952,2577.7,2577.1,3.88032]
[1723811894462,4.0078921,2577.6,2577.0,3.88037]
[1723811894659,3.88005,2577.3,2576.6,10.10963]
[1723811894955,3.88035,2577.1,2576.3,0.1271126]
[1723811895154,3.88035,2577.1,2576.3,4.0085126]
[1723811895155,0.20438661,2577.0,2576.3,4.0085126]
[1723811895393,3.88035,2577.1,2576.5,3.88114]
[1723811895757,3.88056,2577.0,2576.3,7.8899626]
[1723811895959,3.88035,2577.1,2576.3,7.8899626]
[1723811895960,3.88066,2576.9,2576.3,4.0085126]
[1723811896259,3.88066,2576.9,2576.3,4.0085826]
[1723811896458,6.15562,2577.2,2576.4,3.8813]
[1723811896693,10.03586,2577.2,2576.6,3.88098]
[1723811897002,10.03584,2577.2,2576.6,3.88098]
[1723811897208,3.88035,2577.1,2576.6,3.88098]
[1723811897514,3.88048,2577.0,2576.4,3.8813]
[1723811898027,3.88064,2576.9,2576.3,0.1271126]
[1723811898874,3.88064,2576.9,2576.3,4.0086326]
[1723811899081,3.88048,2577.0,2576.4,3.88129]
[1723811899614,3.88048,2577.0,2576.4,7.76259]
[1723811899815,6.15554,2577.2,2576.6,3.88099]
[1723811900017,3.87986,2577.5,2576.8,3.88077]
[1723811900018,7.75972,2577.5,2576.8,3.88077]
[1723811900230,0.12821596,2577.4,2576.9,3.88057]
[1723811900434,2.3957,2578.0,2577.0,3.88043]
[1723811900713,3.87991,2577.4,2576.8,7.76135]
[1723811900914,3.87985,2577.5,2577.0,3.88046]
[1723811901082,0.12821818,2577.4,2576.9,3.88061]
[1723811901279,0.12821865,2577.3,2576.8,3.88066]
[1723811901492,3.87982,2577.5,2576.8,3.88066]
[1723811901695,0.12821877,2577.4,2576.9,3.88052]
[1723811901990,3.87982,2577.5,2576.9,3.88052]
[1723811902201,4.00818923,2577.4,2576.8,3.88066]
[1723811902396,0.12821923,2577.3,2576.8,3.88066]
[1723811902707,3.88049,2577.0,2576.3,4.4611126]
[1723811903225,3.88056,2577.0,2576.4,3.8813]
[1723811903396,3.88073,2576.9,2576.3,4.4611126]
[1723811903603,3.88079,2576.8,2576.3,4.4611126]
[1723811903794,3.88079,2576.8,2576.3,0.1271126]
[1723811903795,3.88138,2576.4,2576.3,0.1271126]
[1723811904230,3.88101,2576.7,2576.3,0.1271126]
[1723811904519,2.76293467,2577.0,2576.3,0.1271126]
[1723811904695,3.8809,2576.8,2576.3,0.1271126]
[1723811904890,3.88122,2576.6,2576.3,0.1271126]
[1723811905091,2.76293467,2577.0,2576.3,0.1271126]
[1723811905092,3.88138,2576.4,2576.3,0.1271126]
[1723811905294,7.83891487,2576.4,2576.3,0.1271126]
[1723811905581,7.76276,2576.4,2576.3,0.1271126]
[1723811905785,11.50902469,2576.4,2576.3,0.1271126]
[1723811906085,15.39040469,2576.4,2576.3,0.1271126]
[1723811906288,15.39041388,2576.4,2576.3,0.1271126]
[1723811906728,11.50903388,2576.4,2576.3,0.1271126]
[1723811907085,10.34464688,2576.4,2576.3,0.1271126]
[1723811907596,2.58188688,2576.4,2576.3,0.1271126]
[1723811907797,3.88138,2576.4,2576.3,0.1271126]
[1723811908029,7.89102959,2576.4,2576.3,0.1271126]
[1723811908322,2.3654,2576.8,2576.3,0.1271126]
[1723811908483,3.88138,2576.4,2576.3,0.1271126]
[1723811908684,7.76276,2576.4,2576.3,0.1271126]
[1723811908920,7.89103655,2576.4,2576.3,0.1271126]
[1723811909523,10.25643655,2576.4,2576.3,0.1271126]
[1723811909683,6.37505655,2576.4,2576.3,0.1271126]
[1723811910026,0.12827409,2576.4,2576.3,0.1271126]
[1723811910231,3.88125,2576.5,2576.3,0.1271126]
[1723811910884,3.88138,2576.4,2576.3,0.1271126]
[1723811912038,2.3654,2576.8,2576.3,0.1271126]
[1723811912347,0.12826326,2576.7,2576.3,0.1271126]
[1723811912652,7.76276,2576.4,2576.3,0.1271126]
[1723811912864,8.68012559,2576.4,2576.3,0.1271126]
[1723811913149,14.90320559,2576.4,2576.3,0.1271126]
[1723811913448,18.53445297,2576.4,2576.3,0.1271126]
[1723811913803,6.35134326,2576.4,2576.3,0.1271126]
[1723811914138,10.10446,2576.4,2576.3,0.1271126]
[1723811914339,10.23274095,2576.4,2576.3,0.1271126]
[1723811914701,14.11412095,2576.4,2576.3,0.1271126]
[1723811915051,10.23274095,2576.4,2576.3,0.1271126]
[1723811915205,15.2477927,2576.4,2576.3,0.1271126]
[1723811915626,15.50028392,2576.4,2576.3,0.1271126]
[1723811915833,19.1291727,2576.4,2576.3,0.1271126]
[1723811916035,15.50028392,2576.4,2576.3,0.1271126]
[1723811916373,2.2806,2575.8,2574.9,3.0]
[1723811916545,3.88268,2575.6,2574.9,3.0]
[1723811916851,3.88289,2575.4,2574.9,6.88362]
[1723811917050,3.88218,2575.9,2574.9,6.88362]
[1723811917051,3.88203,2576.0,2575.1,3.88322]
[1723811917383,3.88203,2576.0,2575.3,3.8829]
[1723811917384,3.88201,2576.0,2575.3,3.8829]
[1723811917507,7.76482,2575.8,2575.2,8.21716]
[1723811917710,3.88176,2576.2,2575.3,3.88302]
[1723811917912,0.12829189,2576.1,2575.3,3.88302]
[1723811918211,3.88146,2576.4,2575.7,3.88234]
[1723811918405,3.88146,2576.4,2575.9,3.88204]
[1723811918406,0.12827566,2576.3,2575.9,3.88204]
[1723811918642,0.12827247,2576.2,2575.7,3.88231]
[1723811918821,0.12827247,2576.2,2575.6,4.334]
[1723811918822,0.12828106,2576.1,2575.6,4.334]
[1723811919023,0.12828106,2576.1,2575.0,6.27143]
[1723811919024,4.01028106,2576.0,2575.3,3.88302]
[1723811919263,4.01028106,2576.0,2575.0,2.388]
[1723811919264,3.88269,2575.6,2575.0,3.88338]
[1723811919561,3.88269,2575.6,2574.5,3.88424]
[1723811919562,0.20447081,2575.5,2574.5,3.88424]
[1723811919858,3.88346,2575.1,2574.4,3.88428]
[1723811920162,3.8853,2573.8,2573.7,0.1271126]
[1723811920360,0.07615487,2573.8,2573.7,0.1271126]
[1723811920582,3.88525,2573.9,2573.7,0.1271126]
[1723811920867,3.6270916,2574.7,2573.7,0.1271126]
[1723811920868,14.21796844,2573.8,2573.7,0.1271126]
[1723811921072,18.10326844,2573.8,2573.7,2.6e-06]
[1723811921210,17.14181357,2573.8,2573.7,2.6e-06]
[1723811921408,2.3575,2572.9,2572.0,3.88798]
[1723811921647,3.88743,2572.4,2571.8,4.334]
[1723811921953,0.07615487,2572.8,2571.4,2.4842]
[1723811921954,0.23575,2572.8,2571.4,2.4842]
[1723811922140,2.3575,2573.5,2572.7,3.88689]
[1723811922375,3.0,2573.7,2572.7,3.88689]
[1723811922376,3.88566,2573.6,2572.8,0.388689]
[1723811922530,0.07615487,2573.5,2572.0,3.88787]
[1723811922885,3.88693,2572.8,2571.9,3.88806]
[1723811923373,3.88658,2573.0,2571.6,2.2891]
[1723811923374,3.88654,2573.0,2572.2,3.88763]
[1723811923531,3.88625,2573.2,2572.4,3.88729]
[1723811923878,3.88537,2573.8,2572.9,3.88662]
[1723811924085,3.88552,2573.7,2572.9,3.88662]
[1723811924251,3.88587,2573.5,2572.8,3.88678]
[1723811924429,3.88606,2573.3,2572.5,4.275989]
[1723811924623,3.88575,2573.5,2572.5,0.388729]
[1723811924624,4.662885,2573.5,2572.5,0.388729]
[1723811924863,3.88566,2573.6,2572.7,3.88683]
[1723811925072,3.88566,2573.6,2572.8,0.388683]
[1723811925273,3.88566,2573.6,2572.9,3.88655]
[1723811925430,6.17341,2573.7,2572.5,3.88719]
[1723811925431,3.88616,2573.3,2572.5,3.88719]
[1723811925633,3.88691,2572.8,2572.0,3.88791]
[1723811925833,6.33491,2573.1,2572.1,3.88784]
[1723811926130,3.88652,2573.0,2572.3,3.88746]
[1723811926332,3.88667,2572.9,2572.3,3.88746]
[1723811926755,6.33491,2573.1,2572.3,3.88746]
[1723811926756,3.88651,2573.0,2572.3,3.88746]
[1723811927142,3.88699,2572.7,2571.9,3.88807]
[1723811927434,3.88821,2571.9,2571.3,3.88898]
[1723811927773,3.96449487,2571.8,2571.1,4.0163826]
[1723811927972,0.07615487,2571.7,2571.1,4.0163826]
[1723811928278,3.88923,2571.2,2571.1,0.1271126]
[1723811928508,0.07615487,2571.3,2571.1,0.1271126]
[1723811928629,2.4086,2571.4,2571.1,0.1271126]
[1723811928832,2.3698,2571.7,2571.1,0.1271126]
[1723811929080,4.277594,2571.6,2571.2,0.03504245]
[1723811929292,4.277514,2571.6,2571.1,0.1271126]
[1723811929569,7.77846,2571.2,2571.1,0.1271126]
[1723811929809,3.88897,2571.4,2571.1,0.1271126]
[1723811929931,2.3698,2571.7,2571.2,3.88923]
[1723811930132,1.20830027,2573.2,2571.1,0.16427173]
[1723811930133,2.3904,2572.5,2571.7,3.88846]
[1723811930358,2.3904,2572.5,2571.1,0.1271126]
[1723811930359,0.07615487,2572.4,2571.8,0.03718252]
[1723811930546,0.23904,2572.4,2571.8,3.88817]
[1723811930751,4.12646,2572.4,2571.8,3.88817]
[1723811931059,2.3904,2572.5,2572.0,3.88796]
[1723811931272,2.3904,2572.5,2572.1,3.88786]
[1723811931564,3.88655,2573.0,2572.2,3.88762]
[1723811931565,2.3107,2572.9,2572.2,3.88762]
[1723811931729,3.96300487,2572.8,2572.2,0.03717898]
[1723811931929,3.88655,2573.0,2571.4,6.88884]
[1723811932171,3.8868,2572.9,2572.0,3.88792]
[1723811932373,3.88708,2572.7,2571.8,3.88831]
[1723811932679,2.3107,2572.6,2572.1,3.92476384]
[1723811932833,3.88671,2572.9,2572.0,3.88802]
[1723811933170,3.88722,2572.6,2572.1,0.03689384]
[1723811933377,0.07615487,2572.5,2572.1,0.03689384]
[1723811933616,3.88873,2571.6,2570.8,3.88969]
[1723811933746,6.30013,2571.6,2570.8,3.88969]
[1723811933944,0.07615487,2571.5,2571.0,3.88953]
[1723811934188,3.88893,2571.4,2570.2,6.8903]
[1723811934488,3.88838,2571.8,2570.3,3.8905]
[1723811934645,4.28447849,2572.0,2570.7,4.483]
[1723811934841,4.28447849,2572.0,2571.1,4.0164626]
[1723811935045,3.88739,2572.5,2571.7,3.88844]
[1723811935294,6.13912,2572.7,2571.9,3.88806]
[1723811935647,6.13912,2572.7,2571.9,3.88802]
[1723811936157,3.88721,2572.6,2571.9,7.77606]
[1723811936388,4.501141,2572.6,2571.9,3.88802]
[1723811936682,3.88764,2572.3,2571.7,3.88844]
[1723811936887,3.96387487,2572.2,2571.5,3.88869]
[1723811937046,3.88764,2572.3,2571.5,3.88869]
[1723811937047,4.665135,2572.3,2571.7,3.88837]
[1723811937248,2.2521,2572.7,2571.3,2.3117]
[1723811937249,6.13914,2572.7,2571.9,3.88807]
[1723811937797,2.4777,2573.1,2572.1,3.88773]
[1723811937947,3.88709,2572.7,2571.9,7.77622]
[1723811938144,3.96209487,2573.4,2571.4,3.8889]
[1723811938145,0.07615487,2572.6,2571.6,3.8885]
[1723811938391,0.07615487,2572.6,2571.3,2.3117]
[1723811938580,0.07615487,2572.6,2571.5,3.88877]
[1723811938581,3.88775,2572.2,2571.5,3.88877]
[1723811938888,3.88775,2572.2,2571.4,3.88892]
[1723811938889,3.88787,2572.1,2571.4,3.88892]
[1723811939204,4.276525,2572.2,2571.4,3.88892]
[1723811939205,0.388775,2572.2,2571.4,3.88892]
[1723811939401,3.88782,2572.2,2571.6,3.88851]
[1723811939546,3.88748,2572.4,2571.8,3.88818]
[1723811940001,7.77503,2572.4,2571.8,3.88818]
[1723811940149,4.664983,2572.4,2571.8,3.88818]
[1723811940513,3.8878,2572.2,2571.6,3.88855]
[1723811940813,3.8881,2572.0,2571.4,3.88888]
[1723811940959,6.29976,2572.7,2572.1,3.88785]
[1723811941184,3.0,2573.4,2572.1,3.88785]
[1723811941185,2.4127,2573.1,2572.1,0.777601]
[1723811941433,3.88606,2573.3,2572.7,3.88696]
[1723811941644,2.4127,2573.6,2572.4,2.4328]
[1723811941831,2.4127,2573.6,2573.0,3.88639]
[1723811942183,2.4127,2573.6,2572.4,2.4328]
[1723811942184,2.4127,2573.6,2572.7,3.88684]
[1723811942432,0.50631123,2574.0,2572.8,3.88677]
[1723811942433,3.88552,2573.7,2572.8,3.88677]
[1723811942588,3.88521,2573.9,2572.5,3.88725]
[1723811942589,3.88521,2573.9,2572.6,0.3893]
[1723811942784,2.449,2574.0,2573.3,3.88592]
[1723811943035,2.449,2574.0,2573.3,7.77187]
[1723811943185,3.88461,2574.3,2573.5,3.88566]
[1723811943385,3.88432,2574.5,2573.8,3.88519]
[1723811943579,3.88395,2574.7,2573.9,3.88515]
[1723811944093,2.3796,2574.8,2574.0,3.88488]
[1723811944292,0.23796,2574.7,2574.0,3.88488]
[1723811944642,0.06760484,2575.4,2573.6,2.753003]
[1723811944643,2.4436,2575.2,2574.7,3.88393]
[1723811944855,3.88287,2575.5,2574.8,3.88368]
[1723811945004,0.07615487,2575.4,2574.3,6.15007]
[1723811945222,3.88346,2575.1,2574.1,3.88478]
[1723811945433,3.8835,2575.0,2574.3,3.88454]
[1723811945580,3.8828,2575.5,2573.9,2.4598]
[1723811945581,3.8829,2575.4,2573.9,2.4598]
[1723811945780,3.88309,2575.3,2574.4,3.92137191]
[1723811946011,3.88309,2575.3,2574.5,3.88424]
[1723811946193,4.12713,2575.5,2574.7,3.88393]
[1723811946414,0.657073,2575.4,2574.9,3.88362]
[1723811946720,0.24436,2575.5,2575.0,3.88338]
[1723811946921,3.88156,2576.3,2575.4,3.88288]
[1723811947232,3.88139,2576.4,2575.6,3.88258]
[1723811947524,6.20575,2576.6,2575.5,0.03697218]
[1723811947525,3.88185,2576.1,2575.5,0.03697218]
[1723811947682,2.3246,2576.6,2575.4,3.88286]
[1723811947683,3.88181,2576.2,2575.7,0.03697042]
[1723811947878,3.88143,2576.4,2575.6,3.9195313]
[1723811948131,3.88115,2576.6,2575.8,3.88217]
[1723811948425,0.07615487,2576.5,2575.9,0.03696865]
[1723811948642,3.88063,2576.9,2576.1,3.88172]
[1723811948841,3.88063,2576.9,2576.4,3.88125]
[1723811948842,0.23647,2576.9,2576.4,3.88125]
[1723811949143,3.88125,2576.5,2576.2,0.036966]
[1723811949329,0.388125,2576.5,2575.4,2.335]
[1723811949638,0.388125,2576.5,2575.5,3.88273]
[1723811949853,3.8807,2576.9,2576.2,3.88162]
[1723811950002,9.24443,2577.5,2576.0,3.88188]
[1723811950003,3.88078,2576.8,2576.0,3.88188]
[1723811950203,0.38807,2576.8,2576.0,3.88188]
[1723811950516,3.88166,2576.3,2575.4,6.21784]
[1723811950717,3.88166,2576.3,2574.2,3.88457]
[1723811950718,2.3363,2576.0,2574.6,6.32948]
[1723811950917,3.88262,2575.6,2574.6,6.32948]
[1723811951240,6.21835,2576.0,2574.8,3.88378]
[1723811951241,0.388262,2575.5,2574.8,3.88378]
[1723811951404,0.388262,2575.5,2574.0,2.3077]
[1723811951405,3.88304,2575.3,2574.0,2.3077]
[1723811951601,3.88276,2575.5,2574.7,3.88394]
[1723811951814,3.88304,2575.3,2574.5,3.8842]
[1723811952040,3.88306,2575.3,2574.5,3.8842]
[1723811952408,3.88323,2575.2,2574.5,3.88414]
[1723811952555,3.88323,2575.2,2574.0,2.3077]
[1723811952556,3.88384,2574.8,2574.0,6.19259]
[1723811952768,3.96011487,2574.7,2573.7,3.88536]
[1723811952934,2.4658,2574.6,2573.1,2.3144]
[1723811953263,2.4658,2574.6,2573.2,3.8861]
[1723811953264,3.88515,2573.9,2573.2,3.8861]
[1723811953456,3.88502,2574.0,2573.2,3.8861]